bitfinex-derivatives/quotes_ETHF0:USTF0_20250911
["timestamp","ask_amount","ask_price","bid_price","bid_amount"]
[1757590859681,0.8462,4437.0,4436.9,0.5019]
[1757590859881,0.8462,4437.0,4436.9,0.6976]
[1757590860377,0.5153,4437.0,4436.9,0.6976]
[1757590860680,0.7214,4437.4,4437.3,0.3966]
[1757590860879,0.7214,4437.4,4437.3,0.6976]
[1757590862079,0.4289,4439.0,4438.8,0.2009]
[1757590862380,0.5153,4438.9,4438.8,0.3966]
[1757590862680,0.5153,4438.9,4438.8,14.3966]
[1757590862876,0.5153,4438.9,4438.8,14.6976]
[1757590863269,0.3041,4438.9,4438.8,14.6976]
[1757590863481,0.3041,4439.4,4438.8,14.3966]
[1757590863681,0.7214,4439.4,4439.3,0.2009]
[1757590866585,0.7214,4439.4,4439.3,0.6976]
[1757590867586,0.7214,4439.4,4439.3,0.3966]
[1757590868481,0.7214,4439.4,4439.3,0.2009]
[1757590868677,0.1248,4439.0,4438.9,0.2009]
[1757590868877,0.5421,4439.0,4438.9,0.2009]
[1757590869480,0.8462,4439.0,4438.9,0.5019]
[1757590869680,0.8462,4439.0,4438.9,0.6976]
[1757590871185,0.8462,4439.0,4438.9,0.2009]
[1757590873087,0.8462,4439.0,4438.9,0.3966]
[1757590873289,0.8462,4439.0,4438.9,0.6976]
[1757590873780,0.7214,4439.0,4438.9,0.6976]
[1757590877083,0.8462,4439.0,4438.9,0.3966]
[1757590877692,0.8462,4439.0,4438.9,0.2009]
[1757590877990,0.5153,4438.5,4438.4,0.6976]
[1757590878193,0.5153,4438.5,4438.4,0.92289]
[1757590878782,0.5153,4438.5,4438.4,0.6976]
[1757590880795,0.8462,4438.5,4438.4,0.6976]
[1757590882193,0.7214,4438.5,4438.4,0.6976]
[1757590882391,0.5153,4438.5,4438.4,0.6976]
[1757590882689,0.7214,4438.9,4438.8,0.3966]
[1757590882889,0.7214,4438.9,4438.8,0.6976]
[1757590889098,0.7214,4438.9,4438.8,0.3966]
[1757590889700,0.7214,4438.9,4438.8,0.2009]
[1757590891900,0.415,4438.1,4437.9,1.61494913]
[1757590892100,0.826,4438.0,4437.9,0.1971]
[1757590892396,0.826,4438.0,4437.9,0.7032]
[1757590892397,0.7059,4438.0,4437.9,0.7032]
[1757590892795,0.7059,4438.0,4437.9,2.31940639]
[1757590893593,0.7059,4438.0,4437.9,1.61620639]
[1757590893900,0.826,4438.0,4437.8,1.61620639]
[1757590894200,0.7059,4437.9,4437.8,1.81330639]
[1757590894401,0.7059,4437.9,4437.8,2.31940639]
[1757590895197,0.7059,4437.9,4437.8,0.7032]
[1757590897802,0.7059,4437.9,4437.8,2.31940639]
[1757590898197,0.49460695,4437.9,4437.8,2.31940639]
[1757590898405,0.49460695,4437.9,4437.8,0.1971]
[1757590898592,0.415,4437.9,4437.5,1.61620639]
[1757590898907,0.5351,4437.5,4437.3,1.61620639]
[1757590899109,0.5351,4437.5,4437.2,1.61620639]
[1757590899298,0.5351,4437.5,4437.1,0.3003]
[1757590899806,0.5351,4437.5,4437.0,14.0]
[1757590899807,0.5351,4437.5,4437.4,0.4974]
[1757590900203,0.826,4437.5,4437.4,0.4974]
[1757590900808,0.826,4437.5,4437.1,0.3003]
[1757590901009,0.5351,4437.5,4437.1,0.3003]
[1757590901307,0.5351,4437.5,4437.1,0.4974]
[1757590901308,0.415,4437.2,4437.1,0.4974]
[1757590901504,0.7059,4437.2,4437.1,0.4974]
[1757590902505,0.7059,4437.2,4437.1,0.7032]
[1757590902707,0.5043,4437.2,4437.1,0.7032]
[1757590904409,0.7059,4437.2,4437.1,0.7032]
[1757590904609,0.2909,4437.5,4437.1,0.7032]
[1757590904816,0.1201,4438.0,4437.2,0.3003]
[1757590905113,0.7059,4437.9,4437.8,0.7032]
[1757590907613,0.9312,4437.9,4437.8,0.7032]
[1757590911910,0.7059,4437.8,4437.5,0.3003]
[1757590912215,0.415,4437.2,4437.1,0.4974]
[1757590912420,0.7059,4437.2,4437.1,0.7032]
[1757590914822,0.7059,4437.2,4437.1,0.4974]
[1757590916519,0.7059,4437.2,4436.8,14.0]
[1757590916520,0.2909,4437.1,4436.8,14.3003]
[1757590916725,0.7059,4436.9,4436.8,14.7032]
[1757590919028,0.2134,4436.9,4436.8,14.7032]
[1757590919229,0.2948,4437.1,4436.8,14.4029]
[1757590919428,0.4951,4437.1,4437.0,0.8272]
[1757590919628,0.6909,4437.1,4437.0,0.8272]
[1757590923736,0.6214,4437.9,4437.8,0.5162]
[1757590923936,0.6214,4437.9,4437.8,0.7097]
[1757590924136,0.9162,4437.9,4437.8,0.7097]
[1757590924534,0.4256,4437.9,4437.8,0.7097]
[1757590925137,0.7204,4437.9,4437.8,0.7097]
[1757590926331,0.4256,4437.9,4437.8,0.7097]
[1757590926840,0.7204,4437.9,4437.8,0.7097]
[1757590930831,0.9162,4437.9,4437.8,0.7097]
[1757590940053,0.9162,4437.9,4437.8,0.5162]
[1757590943755,0.9162,4437.9,4437.5,0.3049]
[1757590943946,0.6909,4437.9,4437.5,0.3049]
[1757590944143,0.2948,4437.8,4437.2,0.3049]
[1757590944346,0.1171,4438.0,4437.2,0.22535]
[1757590944542,0.2003,4437.4,4437.3,0.93505]
[1757590944747,0.4951,4437.4,4437.3,0.7097]
[1757590945149,0.9162,4437.4,4437.3,0.7097]
[1757590952357,0.9162,4437.4,4437.3,2.32590639]
[1757590953366,0.9162,4437.4,4437.3,0.7097]
[1757590956167,0.7204,4437.4,4437.3,0.7097]
[1757590956368,0.4256,4437.4,4437.3,0.7097]
[1757590956667,0.7212,4437.4,4437.3,0.7097]
[1757590957365,0.2253,4437.4,4437.3,0.7097]
[1757590960765,0.7217,4437.4,4437.3,0.7097]
[1757590963866,0.2253,4437.4,4437.3,0.7097]
[1757590965468,0.2253,4437.4,4437.3,14.7097]
[1757590966771,0.7217,4437.4,4437.3,14.7097]
[1757590969676,0.4261,4437.4,4437.3,14.7097]
[1757590973875,0.2253,4437.4,4437.3,14.7097]
[1757590977181,0.7217,4437.4,4437.3,14.7097]
[1757590977781,0.7217,4437.4,4437.3,16.328542]
[1757590977980,0.4261,4437.4,4437.3,16.328542]
[1757590979183,0.2253,4437.4,4437.3,16.328542]
[1757590979572,0.4357,4437.4,4437.3,16.328542]
[1757590979779,0.7472,4437.4,4437.3,16.328542]
[1757590980581,0.4357,4437.4,4437.3,16.328542]
[1757590980984,0.2253,4437.4,4437.3,16.328542]
[1757590982876,0.6461,4438.3,4438.2,0.4228]
[1757590983184,1.18312068,4438.3,4438.2,0.7314]
[1757590983587,1.71993068,4438.3,4438.2,0.7314]
[1757590984190,1.71993068,4438.3,4438.2,0.5174]
[1757590984582,1.71993068,4438.3,4438.2,0.2088]
[1757590984782,1.49462068,4438.3,4438.2,0.2088]
[1757590986686,1.49462068,4438.3,4438.2,0.5174]
[1757590989491,1.49444929,4438.3,4438.2,0.5174]
[1757590991790,1.49444929,4438.3,4438.2,0.2088]
[1757590992090,1.18294929,4438.3,4437.7,0.3086]
[1757590992288,0.2104,4437.8,4437.7,0.7314]
[1757590992492,0.5219,4437.8,4437.7,0.7314]
[1757590995709,0.7286,4437.8,4437.7,0.7314]
[1757591003902,0.4171,4437.8,4437.5,1.92639755]
[1757591004199,0.7286,4437.6,4437.5,2.13519755]
[1757591004400,0.7286,4437.6,4437.5,2.34919755]
[1757591004897,0.7286,4437.6,4437.5,2.13519755]
[1757591005096,0.4171,4437.4,4437.3,14.0]
[1757591005298,0.7286,4437.4,4437.3,14.0]
[1757591005602,0.7286,4437.4,4437.3,14.5174]
[1757591005897,0.7286,4437.4,4437.3,14.7314]
[1757591006091,0.3115,4437.6,4437.3,16.34919755]
[1757591006300,0.35334,4438.0,4437.4,0.3086]
[1757591006501,0.5219,4437.5,4437.4,0.7314]
[1757591008799,0.1974,4437.6,4437.5,0.5292]
[1757591008996,0.5036,4437.6,4437.5,0.5292]
[1757591009501,0.5036,4437.6,4437.5,0.8353]
[1757591009906,0.1974,4437.7,4437.6,0.7125]
[1757591010097,0.5036,4437.7,4437.6,0.7125]
[1757591011907,0.1974,4437.7,4437.6,0.7125]
[1757591012406,0.5036,4437.7,4437.6,0.7125]
[1757591016207,0.6969,4437.7,4437.4,1.61779755]
[1757591016505,0.6969,4437.6,4437.5,0.7125]
[1757591017305,0.6969,4437.6,4437.5,0.8353]
[1757591018608,0.1974,4437.6,4437.5,0.8353]
[1757591018909,0.3062,4437.8,4437.7,0.7125]
[1757591019109,0.5036,4437.8,4437.7,0.7125]
[1757591020911,0.5036,4438.8,4438.7,0.4064]
[1757591021109,0.5036,4438.8,4438.7,0.7125]
[1757591021528,0.5036,4438.8,4438.7,14.7125]
[1757591021821,0.1974,4438.8,4438.7,14.7125]
[1757591022210,0.3062,4439.4,4438.8,0.3061]
[1757591022414,1.23332875,4439.3,4439.2,0.5125]
[1757591022621,1.45859875,4439.3,4439.2,0.5125]
[1757591022820,1.23332875,4439.3,4439.2,0.5125]
[1757591023522,1.23332875,4439.3,4439.2,0.7125]
[1757591024223,0.6969,4439.3,4439.2,0.7125]
[1757591025417,0.6969,4438.8,4438.7,14.2064]
[1757591025818,0.6969,4438.8,4438.7,14.5125]
[1757591026728,0.5036,4439.1,4439.0,0.5292]
[1757591026911,0.5036,4439.1,4439.0,0.8353]
[1757591029828,0.5036,4439.4,4439.3,0.7125]
[1757591030228,0.6969,4439.4,4439.3,0.7125]
[1757591031027,0.3062,4439.7,4439.4,0.3061]
[1757591031225,0.3062,4439.7,4439.6,0.7125]
[1757591031528,0.4222,4439.8,4439.7,0.7125]
[1757591032929,0.6196,4439.8,4439.7,0.7125]
[1757591033233,0.3134,4439.8,4439.7,0.7125]
[1757591033432,0.8129,4439.8,4439.7,0.7125]
[1757591033626,32.457,4440.9,4439.7,0.7125]
[1757591033627,0.3062,4440.1,4439.7,0.7125]
[1757591033831,0.229,4440.7,4439.8,0.3061]
[1757591034136,0.5036,4439.9,4439.8,0.7125]
[1757591036438,0.6969,4439.9,4439.8,0.7125]
[1757591036929,0.6969,4439.9,4439.8,14.7125]
[1757591039835,0.3212,4440.4,4439.9,0.2991]
[1757591040037,0.3212,4440.4,4440.3,0.1933]
[1757591040226,0.736,4440.4,4440.3,0.3954]
[1757591040632,0.736,4440.4,4440.3,0.6945]
[1757591041238,0.736,4440.4,4440.3,0.4924]
[1757591041430,0.736,4440.4,4439.8,14.0]
[1757591041631,0.229,4440.7,4439.9,0.2991]
[1757591041831,0.736,4440.0,4439.9,0.6945]
[1757591044742,0.8554,4440.0,4439.9,0.6945]
[1757591045437,0.736,4440.0,4439.9,0.6945]
[1757591050639,0.4148,4439.2,4439.1,0.2991]
[1757591050839,0.736,4439.2,4439.1,0.6945]
[1757591055744,0.736,4439.2,4439.1,0.4924]
[1757591072754,0.736,4439.2,4439.1,0.6856]
[1757591082158,0.314,4439.1,4438.7,0.3156]
[1757591082364,0.1194,4439.5,4438.3,0.5122]
[1757591082365,0.7099,4438.4,4438.3,0.5122]
[1757591083166,0.7099,4438.4,4438.3,0.7054]
[1757591084458,0.314,4438.9,4438.4,0.3156]
[1757591084664,0.1979,4438.5,4438.4,0.3156]
[1757591084864,0.7099,4439.4,4439.3,0.1966]
[1757591085163,1.70653865,4439.4,4438.1,0.3156]
[1757591085367,0.5119,4438.2,4438.1,0.7054]
[1757591086766,0.1979,4438.2,4438.1,0.7054]
[1757591088070,0.5119,4438.2,4438.1,0.7054]
[1757591088364,0.7099,4438.2,4438.1,0.5122]
[1757591088560,0.3959,4438.2,4437.8,0.3156]
[1757591088759,0.3959,4437.9,4437.8,0.5122]
[1757591089064,0.7099,4437.9,4437.8,0.5122]
[1757591089965,0.7099,4437.9,4437.8,0.7054]
[1757591091573,0.1979,4437.9,4437.8,0.7054]
[1757591091873,0.314,4438.1,4437.8,0.7054]
[1757591092069,0.5119,4438.1,4438.0,0.8297]
[1757591092972,0.1979,4438.1,4438.0,0.8297]
[1757591096072,0.7099,4438.1,4438.0,0.7054]
[1757591097171,0.3461,4438.5,4438.0,0.8297]
[1757591097370,0.3461,4438.5,4438.3,0.6982]
[1757591097371,0.4997,4438.4,4438.3,0.6982]
[1757591097881,0.229,4438.5,4438.3,0.6982]
[1757591098082,0.229,4438.5,4438.4,0.2905]
[1757591098382,0.7287,4438.5,4438.4,0.6982]
[1757591098579,0.9407,4438.5,4438.4,0.6982]
[1757591099881,1.069,4438.5,4438.1,0.2905]
[1757591101876,0.3057,4438.4,4437.7,0.2905]
[1757591102979,0.194,4437.8,4437.7,0.4867]
[1757591103186,0.4997,4437.8,4437.7,0.6982]
[1757591106485,0.194,4437.8,4437.7,0.6982]
[1757591107179,0.3573,4438.5,4437.8,0.2905]
[1757591107374,0.7117,4438.4,4438.3,0.6982]
[1757591108889,0.194,4438.4,4438.3,0.6982]
[1757591109081,0.229,4438.5,4438.4,0.2905]
[1757591109277,0.229,4438.5,4438.4,0.6982]
[1757591109478,0.4997,4438.9,4438.8,0.6982]
[1757591115276,0.229,4439.4,4438.8,0.6982]
[1757591115480,0.635,4439.4,4439.3,0.6982]
[1757591115788,1.17697489,4439.4,4439.3,0.6982]
[1757591115981,1.48267489,4439.4,4439.3,0.6982]
[1757591116183,0.9407,4439.4,4439.3,0.6982]
[1757591117388,0.3057,4439.3,4438.8,0.2905]
[1757591117584,0.7117,4438.9,4438.8,0.2905]
[1757591117787,0.7117,4438.9,4438.8,0.4867]
[1757591118081,0.7117,4438.9,4438.8,0.6982]
[1757591129783,0.194,4438.9,4438.8,0.6982]
[1757591130183,0.229,4439.4,4438.8,0.6982]
[1757591130385,0.2908,4439.3,4438.9,0.2893]
[1757591130595,0.4854,4439.0,4438.9,0.709]
[1757591133298,0.685,4439.0,4438.9,0.709]
[1757591136183,0.914,4439.4,4439.3,0.709]
[1757591136395,1.13928,4439.4,4439.3,0.709]
[1757591136797,0.914,4439.4,4439.3,0.709]
[1757591137399,0.914,4439.4,4439.3,0.5012]
[1757591143302,0.914,4439.4,4439.3,0.709]
[1757591144006,0.7144,4439.4,4439.3,0.709]
[1757591144300,0.4236,4439.4,4439.3,0.709]
[1757591144901,0.78634849,4439.4,4439.3,0.709]
[1757591145606,1.27174849,4439.4,4439.3,0.709]
[1757591146001,0.7144,4439.4,4439.3,0.709]
[1757591146207,0.4236,4439.4,4439.3,0.709]
[1757591146507,0.685,4440.0,4439.9,0.709]
[1757591146711,1.24224396,4440.0,4439.9,0.709]
[1757591147904,0.2908,4440.9,4440.1,0.2893]
[1757591148208,0.685,4440.7,4440.6,0.709]
[1757591148402,1.24207286,4440.7,4440.6,0.709]
[1757591149898,0.2908,4440.9,4440.6,0.709]
[1757591150101,0.2908,4441.4,4440.7,0.2893]
[1757591150397,1.24101277,4441.3,4441.2,0.5012]
[1757591151604,0.685,4441.3,4441.2,0.5012]
[1757591152712,0.685,4441.3,4440.5,0.1256]
[1757591152911,0.685,4441.3,4440.6,0.2893]
[1757591154603,0.685,4440.3,4440.2,0.5012]
[1757591154809,0.1946,4440.3,4440.2,0.709]
[1757591155111,0.2908,4440.9,4440.3,0.2893]
[1757591155409,0.685,4440.9,4440.8,0.5012]
[1757591155809,0.685,4440.9,4440.8,0.2119]
[1757591156813,0.685,4440.9,4440.8,0.709]
[1757591160614,0.685,4440.9,4440.5,0.3077]
[1757591161108,0.3942,4440.9,4440.2,0.3077]
[1757591161310,0.3014,4440.8,4440.2,0.3077]
[1757591161514,0.2035,4440.3,4440.2,0.7341]
[1757591161821,0.5049,4440.3,4440.2,0.7341]
[1757591162502,0.7188,4440.9,4440.8,0.2126]
[1757591162705,0.7188,4440.9,4440.8,0.5203]
[1757591163517,0.7188,4440.9,4440.8,0.7341]
[1757591165618,0.2035,4440.3,4440.2,0.7341]
[1757591165914,0.3014,4440.9,4440.2,0.4264]
[1757591166119,0.7188,4440.9,4440.8,0.5203]
[1757591166315,0.3014,4440.2,4440.1,0.3077]
[1757591166522,0.7188,4439.7,4439.6,0.7341]
[1757591166917,0.5049,4439.7,4439.6,0.7341]
[1757591167211,0.2035,4439.7,4439.6,0.7341]
[1757591167605,0.1227,4440.5,4439.6,0.4264]
[1757591167810,0.3014,4440.4,4439.7,0.3077]
[1757591169017,0.2035,4440.5,4440.4,0.4264]
[1757591169214,0.2035,4440.5,4440.4,0.7341]
[1757591169422,0.4174,4440.5,4440.4,0.7341]
[1757591169719,0.7188,4440.5,4440.4,0.7341]
[1757591171217,0.8415,4440.5,4440.4,0.7341]
[1757591171515,0.8415,4440.5,4439.6,0.3077]
[1757591177631,0.1227,4439.5,4438.6,0.3077]
[1757591177817,0.3014,4439.4,4438.7,0.22525]
[1757591178018,0.2035,4438.8,4438.7,0.95935]
[1757591178323,0.3014,4439.0,4438.7,0.7341]
[1757591178525,0.3014,4439.0,4438.9,0.4264]
[1757591178816,0.2035,4439.1,4439.0,0.553]
[1757591179327,0.2035,4439.1,4439.0,0.8607]
[1757591179521,0.5049,4439.1,4439.0,0.8607]
[1757591180128,0.3014,4439.6,4439.0,0.553]
[1757591180417,0.8538,4439.7,4439.6,0.5203]
[1757591180618,0.8538,4439.7,4439.0,0.1266]
[1757591180823,0.8538,4439.7,4439.1,0.3077]
[1757591186627,0.1227,4439.5,4439.1,0.3077]
[1757591186825,0.4174,4439.2,4439.1,0.5203]
[1757591187126,0.7188,4439.2,4439.1,0.5203]
[1757591187512,0.4174,4439.2,4438.6,0.2969]
[1757591187716,0.4104,4438.8,4438.7,0.4002]
[1757591187930,0.7018,4438.8,4438.7,0.6971]
[1757591189128,0.4943,4438.8,4438.7,0.6971]
[1757591189720,0.2914,4439.0,4438.7,0.6971]
[1757591190026,0.2914,4439.0,4438.8,0.2969]
[1757591190222,0.4943,4439.0,4438.9,0.6971]
[1757591196434,0.7018,4439.0,4438.9,0.6971]
[1757591197430,0.4104,4438.3,4438.2,0.6971]
[1757591197643,0.7018,4438.3,4438.2,0.9224]
[1757591197829,0.7018,4438.3,4438.2,0.6971]
[1757591198242,0.7018,4438.3,4437.6,0.2969]
[1757591198628,0.7018,4438.3,4437.7,14.0]
[1757591198928,0.7018,4437.7,4437.6,0.4934]
[1757591199132,0.7018,4437.7,4437.0,0.1266]
[1757591199339,0.7018,4437.2,4437.1,14.4934]
[1757591199835,0.7018,4437.2,4437.1,14.6971]
[1757591200435,0.7018,4437.2,4437.1,0.1965]
[1757591201238,0.7018,4437.2,4436.9,0.2969]
[1757591201428,0.824,4437.0,4436.9,0.4934]
[1757591201630,0.824,4437.0,4436.9,0.6971]
[1757591202333,0.7018,4437.0,4436.9,0.6971]
[1757591202531,0.1222,4437.5,4436.9,0.4002]
[1757591202734,0.824,4437.5,4437.4,0.4934]
[1757591209343,0.824,4437.5,4437.4,0.6971]
[1757591210447,0.7018,4437.5,4437.4,0.6971]
[1757591210645,0.4943,4437.8,4437.7,0.6971]
[1757591212146,0.7018,4437.8,4437.7,0.6971]
[1757591214644,0.5326,4437.5,4437.0,0.1167]
[1757591214837,0.4104,4437.1,4437.0,0.8138]
[1757591215034,0.7018,4437.1,4437.0,0.8138]
[1757591215442,0.7018,4437.1,4437.0,0.6971]
[1757591218546,0.3028,4437.9,4437.1,0.3]
[1757591219043,0.52815,4437.9,4437.1,0.3]
[1757591219953,0.2008,4437.2,4437.1,0.7132]
[1757591220453,0.5036,4437.2,4437.1,0.7132]
[1757591221353,0.7134,4437.2,4437.1,0.7132]
[1757591221647,0.7134,4437.2,4436.7,14.0]
[1757591221844,0.3502,4438.0,4437.0,0.2085]
[1757591221845,0.7134,4437.1,4437.0,0.2085]
[1757591222041,0.1263,4437.0,4436.8,0.3]
[1757591222240,0.7134,4436.9,4436.8,0.5085]
[1757591223552,0.7134,4436.9,4436.8,0.7132]
[1757591226851,0.2008,4436.9,4436.8,0.7132]
[1757591228345,0.5036,4436.9,4436.8,0.7132]
[1757591230757,0.2008,4436.9,4436.8,0.7132]
[1757591231056,0.5036,4437.4,4437.1,0.3]
[1757591231262,0.7134,4437.2,4437.1,0.5085]
[1757591231563,0.7134,4437.2,4437.1,0.7132]
[1757591232062,0.4106,4436.7,4436.6,0.3]
[1757591232264,0.7134,4436.7,4436.6,0.5085]
[1757591232457,0.7134,4436.7,4436.6,0.7132]
[1757591232763,0.2008,4436.7,4436.6,0.7132]
[1757591233057,0.1263,4437.5,4436.7,0.3]
[1757591233258,0.1263,4437.5,4436.5,0.1167]
[1757591233259,1.2733107,4437.4,4437.3,0.2085]
[1757591233457,1.2733107,4437.4,4437.3,0.5085]
[1757591238772,1.2733107,4437.4,4436.5,0.1167]
[1757591238773,1.2733107,4437.4,4436.6,0.3]
[1757591239068,0.7134,4436.7,4436.6,0.7132]
[1757591239762,0.7134,4436.7,4435.5,0.1167]
[1757591239763,0.7134,4436.7,4436.3,0.3]
[1757591239962,0.4106,4436.7,4436.6,0.4132]
[1757591240164,0.4106,4436.7,4436.6,0.7132]
[1757591240572,0.7134,4436.7,4436.6,0.7132]
[1757591244669,0.5126,4436.3,4436.2,0.7132]
[1757591244877,0.7134,4436.3,4436.2,0.7132]
[1757591248967,0.2008,4436.3,4436.2,0.7132]
[1757591249171,0.1263,4437.0,4436.3,0.2977]
[1757591249368,1.2889097,4436.9,4436.8,0.5039]
[1757591250189,0.7293,4436.9,4436.5,0.2977]
[1757591250377,0.3047,4436.8,4436.1,0.2977]
[1757591253288,0.5177,4436.2,4436.1,0.7169]
[1757591253784,0.213,4436.2,4436.1,0.7169]
[1757591255084,0.5177,4436.2,4436.1,0.7169]
[1757591255673,0.3047,4436.5,4436.1,0.7169]
[1757591255877,0.3047,4436.9,4436.2,0.2977]
[1757591256278,0.7293,4436.9,4436.8,0.2062]
[1757591256578,1.28909012,4436.9,4436.8,0.5039]
[1757591257288,1.28909012,4436.9,4436.8,0.2062]
[1757591257888,0.7293,4436.9,4436.8,0.2062]
[1757591259181,0.7293,4436.9,4436.6,0.2977]
[1757591259381,0.7293,4436.9,4436.0,14.1167]
[1757591259686,0.7293,4436.8,4436.7,0.2062]
[1757591259888,0.7293,4436.8,4436.7,0.5039]
[1757591260287,0.7293,4436.8,4436.7,0.7169]
[1757591260483,0.228,4436.9,4436.8,0.2977]
[1757591260785,0.228,4436.9,4436.8,0.7169]
[1757591261086,0.7457,4436.9,4436.8,0.7169]
[1757591271697,0.9573,4436.9,4436.8,0.7169]
[1757591274296,0.9573,4436.9,4436.8,0.5039]
[1757591274493,0.6526,4436.9,4436.1,0.2977]
[1757591274686,0.213,4436.3,4436.2,0.5039]
[1757591274891,0.7293,4436.3,4436.2,0.7169]
[1757591280603,0.5177,4436.3,4436.2,0.7169]
[1757591283203,0.727,4436.3,4436.2,0.7169]
[1757591284601,0.727,4436.3,4436.2,0.5039]
[1757591285204,0.7083,4435.8,4435.7,16.72845368]
[1757591285399,0.7083,4435.8,4435.7,14.7106]
[1757591286600,0.499,4435.8,4435.7,14.7106]
[1757591286800,0.1989,4435.8,4435.7,14.7106]
[1757591288513,0.499,4435.8,4435.7,14.7106]
[1757591289205,0.7083,4435.8,4435.7,14.7106]
[1757591290407,0.1989,4435.8,4435.7,14.7106]
[1757591290613,0.7083,4436.1,4436.0,0.8361]
[1757591290814,0.7083,4436.1,4436.0,0.7106]
[1757591295012,0.3001,4436.4,4436.0,0.5339]
[1757591295225,0.7083,4436.4,4436.3,0.7106]
[1757591299020,0.7083,4436.4,4436.3,0.5128]
[1757591300016,0.7083,4436.4,4436.3,0.2106]
[1757591300224,0.7083,4436.4,4436.0,0.3022]
[1757591301820,0.4082,4436.4,4435.7,14.0]
[1757591302025,0.1989,4435.9,4435.8,0.7106]
[1757591302222,0.499,4435.9,4435.8,0.7106]
[1757591304120,0.3001,4436.2,4435.9,0.3022]
[1757591304419,0.499,4436.2,4436.1,0.7106]
[1757591304625,0.7083,4436.2,4436.1,0.7106]
[1757591305524,0.3001,4436.5,4436.2,0.3022]
[1757591305829,0.8348,4436.5,4436.1,0.3022]
[1757591306126,0.3001,4436.4,4435.7,0.3022]
[1757591306518,0.7083,4436.4,4436.3,0.2106]
[1757591306727,0.7083,4436.4,4436.3,0.5128]
[1757591306918,0.7083,4436.4,4436.3,0.2106]
[1757591307716,0.4082,4436.4,4435.7,0.2968]
[1757591308026,0.696,4435.8,4435.7,0.6966]
[1757591318335,0.3934,4435.2,4435.1,0.2021]
[1757591318538,0.696,4435.2,4435.1,0.2021]
[1757591318734,0.696,4435.2,4435.1,0.4989]
[1757591319143,0.696,4435.2,4435.1,0.6966]
[1757591321235,0.3026,4435.9,4435.2,0.2968]
[1757591321536,0.92146,4435.9,4435.8,0.4989]
[1757591321736,0.696,4435.9,4435.8,0.6966]
[1757591324946,0.696,4435.9,4435.8,0.4989]
[1757591325441,0.696,4435.9,4435.8,0.6966]
[1757591325838,0.6204,4436.7,4436.6,0.2021]
[1757591326041,1.48054142,4436.7,4436.6,0.4989]
[1757591326544,1.48054142,4436.7,4436.6,0.2021]
[1757591326944,1.48054142,4436.7,4436.1,0.2968]
[1757591327144,0.923,4436.7,4436.1,0.2968]
[1757591328040,0.1981,4436.2,4436.1,0.6966]
[1757591328347,0.5007,4436.2,4436.1,0.6966]
[1757591328644,0.696,4436.2,4436.1,0.6966]
[1757591330845,0.1276,4436.0,4435.8,0.2968]
[1757591331039,0.696,4435.9,4435.8,0.4989]
[1757591331744,0.696,4435.9,4435.1,0.2968]
[1757591332541,0.3934,4435.2,4435.1,0.4989]
[1757591332847,0.696,4435.2,4435.1,0.4989]
[1757591334552,0.696,4435.2,4435.1,0.6966]
[1757591335050,0.1981,4435.2,4435.1,0.6966]
[1757591338051,0.4947,4435.2,4435.1,0.6966]
[1757591338551,0.6962,4435.2,4435.1,0.6966]
[1757591346556,0.6962,4435.2,4434.8,0.3061]
[1757591346856,0.709,4434.9,4434.8,0.5103]
[1757591347048,0.709,4434.9,4434.8,0.2042]
[1757591347251,0.709,4434.9,4434.8,0.5103]
[1757591348954,0.709,4434.9,4434.5,14.0]
[1757591349258,0.1167,4435.0,4434.5,14.0]
[1757591349259,0.709,4434.6,4434.5,14.7239]
[1757591349550,0.709,4434.6,4434.5,0.7239]
[1757591351258,0.709,4434.6,4434.5,0.8477]
[1757591352958,0.6285,4435.1,4435.0,0.5416]
[1757591353154,0.6285,4435.1,4435.0,0.8477]
[1757591355956,0.83,4435.1,4435.0,0.8477]
[1757591357056,0.6285,4435.1,4435.0,0.7239]
[1757591357261,0.83,4435.1,4435.0,0.7239]
[1757591357964,0.83,4435.1,4435.0,0.2042]
[1757591358164,0.83,4435.1,4434.5,0.1238]
[1757591358463,0.709,4434.7,4434.6,0.7239]
[1757591358671,0.2109,4434.7,4434.6,0.7239]
[1757591360563,0.2109,4434.7,4434.1,14.40581]
[1757591360564,0.3319,4435.1,4435.0,0.2042]
[1757591360770,0.5334,4435.1,4435.0,0.5103]
[1757591361162,0.83,4435.1,4435.0,0.5103]
[1757591380580,0.83,4435.1,4435.0,0.2042]
[1757591382683,0.83,4435.1,4435.0,0.4977]
[1757591386692,0.83,4435.1,4435.0,0.6931]
[1757591387892,1.3887603,4435.1,4435.0,0.6931]
[1757591389593,0.6797603,4435.1,4435.0,0.811]
[1757591389792,0.121,4435.1,4435.0,0.811]
[1757591390496,0.6278,4435.1,4435.0,0.811]
[1757591391990,0.121,4435.1,4435.0,0.811]
[1757591396894,0.121,4435.1,4435.0,14.811]
[1757591398489,0.3203,4435.6,4435.0,14.811]
[1757591398692,0.7279,4435.6,4435.5,0.4018]
[1757591398893,0.7279,4435.6,4435.5,0.6935]
[1757591400496,0.4076,4435.3,4435.2,0.2917]
[1757591400801,0.4076,4435.3,4434.5,0.1238]
[1757591400802,0.7279,4435.3,4434.7,0.2917]